Cogmind - Beta 13 @@@ ROGUE MODE // 2024.04.04 @ 14:39:17 Player: Devilhunter10 Result: Destroyed by as-96615 with Assembled Blade Performance ------------- Evolutions (0) 0 Regions Visited (4) 800 Robots Destroyed (8) 40 Value Destroyed (199) 199 Prototype IDs (1) 20 Alien Tech Used (0) 0 Bonus (274) 274 TOTAL SCORE: 1333 Bonus ------- Aligned with FarCom 300 Friendly Fire -26 Cogmind --------- Core Integrity 0/250 Matter 276/300 Energy 95/100 System Corruption 6% Temperature Cool (0) Movement Walking (120) Location -9/Mines Parts ------- > --- POWER (1) -------- (None) > --- PROPULSION (2) --- Aluminum Leg > --- UTILITY (2) ------ Small Storage Unit Signal Interpreter > --- WEAPON (2) ------- Longsword +1 (fused) > --- INVENTORY (8) ---- Aluminum Leg Aluminum Leg Heat Sink Medium Storage Unit Medium Matter Pod (73) Particle Gun Assault Rifle Peak State ------------ > --- POWER ------------ Light Ion Engine > --- PROPULSION ------- Aluminum Leg Aluminum Leg > --- UTILITY ---------- Small Storage Unit Signal Interpreter > --- WEAPON ----------- Assault Rifle Longsword +1 > --- INVENTORY -------- Aluminum Leg Aluminum Leg Heat Sink Medium Storage Unit Medium Matter Pod Particle Gun Assault Rifle [Rating: 14] Favorites ----------- Power Light Ion Engine Engine Light Ion Engine Propulsion Aluminum Leg Leg Aluminum Leg Utility Small Storage Unit Device Heat Sink Storage Small Storage Unit Processor Signal Interpreter Weapon Assault Rifle Ballistic Gun Assault Rifle Launcher Rocket Launcher Slashing Weapon Longsword +1 Build | -11 -10 -10 -10 -9 ------- Run | Yrd Mat Min Exi Min Slots Evolved . | . . . . . Power . | . . . . . Propulsion . | . . . . . Utility . | . . . . . Weapon . | . . . . . Parts Attached 15 | 6 6 1 . 2 Power 2 | 1 . 1 . . Engine 2 | 1 . 1 . . Core . | . . . . . Reactor . | . . . . . Propulsion 6 | 2 4 . . . Treads . | . . . . . Leg 6 | 2 4 . . . Wheel . | . . . . . Hover . | . . . . . Flight . | . . . . . Utility 3 | 1 2 . . . Device 1 | . 1 . . . Storage 1 | 1 . . . . Processor 1 | . 1 . . . Hackware . | . . . . . Protection . | . . . . . Artifact . | . . . . . Weapon 4 | 2 . . . 2 Energy Gun . | . . . . . Energy Cannon . | . . . . . Ballistic Gun 2 | 2 . . . . Ballistic Cannon . | . . . . . Launcher 1 | . . . . 1 Special Weapon . | . . . . . Impact Weapon . | . . . . . Slashing Weapon 1 | . . . . 1 Piercing Weapon . | . . . . . Special Melee Weapon . | . . . . . Unidentified Prototypes 1 | . . . . 1 Parts Lost 4 | . . . . 4 Power 1 | . . . . 1 Propulsion 1 | . . . . 1 Utility . | . . . . . Weapon 2 | . . . . 2 Highest Loss Streak 4 | . . . . 4 To Critical Strikes . | . . . . . Average Slot Usage (%) 98 | . 94 100 100 92 Engine 13 | . 14 14 14 10 Leg 28 | . 28 28 28 28 Storage 14 | . 14 14 14 14 Processor 12 | . 6 14 14 14 Ballistic Gun 27 | . 28 28 28 14 Naked Turns . | . . . . . Heaviest Build 15 | 14 15 14 12 14 Greatest Support 20 | 20 20 20 20 20 Greatest Overweight (x) 3 | 3 . . . . Average Overweight (x) . | . . . . . Largest Inventory Capacity 8 | 8 8 8 8 8 Average Capacity 7 | 7 8 8 8 8 Most Carried 8 | 4 8 8 8 8 Average Carried 6 | 1 4 7 6 7 Final Capacity 8 | 8 8 8 8 8 Final Carried 8 | 1 8 7 8 7 Class Distribution -------------------- 100% | Mutant Dominant Class ---------------- Mutant | -10/Materials Mutant | -10/Mines Mutant | -10/Exiles Mutant | -9/Mines Resources | -11 -10 -10 -10 -9 ----------- Run | Yrd Mat Min Exi Min Matter Collected 491 | 245 156 54 27 9 Remotely . | . . . . . Salvage Created 324 | . 209 54 . 61 Parts 16 | . 6 6 . 4 Haulers Intercepted . | . . . . . Recyclers Shooed . | . . . . . Parts Field Recycled . | . . . . . Retrieved Matter . | . . . . . Parts Self-Destructed . | . . . . . Prevented . | . . . . . Kills | -11 -10 -10 -10 -9 ------- Run | Yrd Mat Min Exi Min Combat Hostiles Destroyed 12 | . 4 3 . 5 Melee 4 | . . . . 4 Guns 7 | . 4 3 . . AOE 1 | . . . . 1 Classes Destroyed 4 | . 1 1 . 2 Tunneler 1 | . . . . 1 Swarmer 3 | . . 3 . . Grunt 4 | . 4 . . . Assembled 5 | . . . . 5 Best Kill Streak 6 | . 4 3 . 6 Combat Bots Only 5 | . 4 3 . 5 Max Kills in Single Turn 1 | . 1 1 . 1 Gunslinging . | . . . . . Exploded 1 | . . . . 1 Melee 1 | . . . . 1 Uniques/NPCs Destroyed . | . . . . . Combat | -11 -10 -10 -10 -9 -------- Run | Yrd Mat Min Exi Min Hostile Shots Fired 78 | . 19 9 . 50 Missed 24 | . 2 4 . 18 Damage Taken 824 | . 227 43 . 554 Core 266 | . 63 6 . 197 Absorbed by Shields . | . . . . . Core Remaining (%) 100 | 100 . . . . Volleys Fired 19 | . 11 5 . 3 Largest 2 | . 2 2 . 1 Hottest 40 | . 40 40 . 33 Shots Fired 35 | . 22 10 . 3 Gun 32 | . 22 10 . . Cannon . | . . . . . Launcher 3 | . . . . 3 Special . | . . . . . Kinetic 32 | . 22 10 . . Thermal . | . . . . . Explosive 3 | . . . . 3 Electromagnetic . | . . . . . Robot Hit Streak 4 | . 4 2 . . Robot Miss Streak 4 | . 1 4 . 1 Penetration Max . | . . . . . Secondary Targets . | . . . . . Shots Hit Robots 24 | . 15 4 . 5 Core Hits 23 | . 8 3 . 12 Critical Kills 1 | . 1 . . . Critical Parts Destroyed . | . . . . . Critical Strikes 1 | . 1 . . . Destroy 1 | . 1 . . . Melee Attacks 8 | . . . . 8 Impact . | . . . . . Slashing 8 | . . . . 8 Piercing . | . . . . . Sneak Attacks . | . . . . . Combat Hostiles . | . . . . . Follow-up Attacks . | . . . . . Damage Inflicted 795 | . 213 53 . 529 Guns 266 | . 213 53 . . Cannons . | . . . . . Explosions 230 | . . . . 230 Melee 299 | . . . . 299 Ramming . | . . . . . Kinetic 266 | . 213 53 . . Thermal . | . . . . . Explosive 230 | . . . . 230 Electromagnetic . | . . . . . Impact . | . . . . . Slashing 299 | . . . . 299 Piercing . | . . . . . Highest Corruption 6 | . 4 4 4 6 Average Corruption 4 | . 3 4 4 5 Corruption Purged . | . . . . . Corruption Blocked . | . . . . . Effects 24 | . 4 13 6 1 Message Errors 7 | . 1 3 3 . Matter Fused 8 | . 2 5 1 . Heat Flow Errors 5 | . 1 2 2 . Energy Discharges 2 | . . 2 . . Parts Fused 1 | . . . . 1 Data Loss (minor) 1 | . . 1 . . Overload Shots . | . . . . . Overflow Damage 52 | . . . . 52 Projectiles . | . . . . . Explosions . | . . . . . Melee 52 | . . . . 52 Knockbacks . | . . . . . Impact . | . . . . . Kinetic . | . . . . . Secondary . | . . . . . Self-Inflicted Damage 72 | . . . . 72 Shots 2 | . . . . 2 Rammed . | . . . . . Targets Rammed . | . . . . . Kicked . | . . . . . Crushed . | . . . . . Highest Temperature 269 | . 250 124 269 60 Average Temperature 84 | . 65 64 138 26 Received Heat Transfer 469 | . 129 . . 340 Siege Activations . | . . . . . Robots Corrupted . | . . . . . Combat Hostiles . | . . . . . Parts Fried . | . . . . . Impact Corruptions . | . . . . . Robots Melted . | . . . . . Combat Hostiles . | . . . . . Parts Melted . | . . . . . Heat Transferred . | . . . . . Parts Sabotaged . | . . . . . Parts Stolen . | . . . . . Parts Stripped . | . . . . . Power Chain Reactions . | . . . . . Alert | -11 -10 -10 -10 -9 ------- Run | Yrd Mat Min Exi Min Peak Influence 150 | . 150 136 . 29 Initial 58 | . . 58 . . Average 73 | . 73 81 . 12 Maximum Alert Level . | . . . . . Low Security (%) 100 | 100 100 100 . 100 Level 1 . | . . . . . Level 2 . | . . . . . Level 3 . | . . . . . Level 4 . | . . . . . Level 5 . | . . . . . High Security . | . . . . . Max Security . | . . . . . Squads Dispatched 1 | . 1 . . . Investigation . | . . . . . Extermination . | . . . . . Reinforcement 1 | . 1 . . . Assault . | . . . . . Garrison . | . . . . . Intercept . | . . . . . Searches Triggered . | . . . . . Construction Impeded . | . . . . . Haulers Reinforced . | . . . . . Active Scanning Responses . | . . . . . Cargo Convoy Interrupts . | . . . . . Stealth | -11 -10 -10 -10 -9 --------- Run | Yrd Mat Min Exi Min Distress Signals . | . . . . . Communications Jammed . | . . . . . Distress Signals . | . . . . . Times Spotted 24 | . 7 3 . 14 Peak Tracking Total 13 | . 2 3 . 13 Tactical Retreats . | . . . . . Traps | -11 -10 -10 -10 -9 ------- Run | Yrd Mat Min Exi Min Traps Triggered 2 | . 2 . . . Indirectly . | . . . . . Trap Hack Attempts . | . . . . . Triggered . | . . . . . Disarmed . | . . . . . Reprogrammed . | . . . . . Reused . | . . . . . Traps Extracted . | . . . . . Installed . | . . . . . Triggered . | . . . . . Machines | -11 -10 -10 -10 -9 ---------- Run | Yrd Mat Min Exi Min Machines Disabled . | . . . . . Max in Single Turn . | . . . . . Machines Repaired . | . . . . . Machines Dismantled . | . . . . . Machines Sabotaged . | . . . . . Overloaded Fab Kills . | . . . . . Hacking | -11 -10 -10 -10 -9 --------- Run | Yrd Mat Min Exi Min Machines Accessed 3 | . 2 1 . . Terminals 3 | . 2 1 . . Fabricators . | . . . . . Repair Stations . | . . . . . Recycling Units . | . . . . . Scanalyzers . | . . . . . Garrison Access . | . . . . . Total Hacks 7 | . 3 4 . . Successful 3 | . 1 2 . . Failed 4 | . 2 2 . . Catastrophic . | . . . . . Database Lockouts . | . . . . . Manual 4 | . . 3 1 . Terminals 7 | . 3 4 . . Fabricators . | . . . . . Repair Stations . | . . . . . Recycling Units . | . . . . . Scanalyzers . | . . . . . Garrison Access . | . . . . . Terminal Hacks 3 | . 1 2 . . Record 1 | . . 1 . . Zone Layout 2 | . 1 1 . . Fabricator Hacks . | . . . . . Repair Station Hacks . | . . . . . Recycling Unit Hacks . | . . . . . Scanalyzer . | . . . . . Garrison Access Hacks . | . . . . . Unauthorized Hacks . | . . . . . Terminals . | . . . . . Fabricators . | . . . . . Repair Stations . | . . . . . Recycling Units . | . . . . . Scanalyzers . | . . . . . Garrison Access . | . . . . . Data Cores Recovered . | . . . . . Used . | . . . . . Hacking Detections 3 | . 2 1 . . Full Trace Events . | . . . . . Feedback Events . | . . . . . Feedback Blocked . | . . . . . Robot Schematics Acquired . | . . . . . Robots Built . | . . . . . Authchips . | . . . . . Time . | . . . . . Total Robot Build Rating . | . . . . . Part Schematics Acquired . | . . . . . Parts Built . | . . . . . Authchips . | . . . . . Time . | . . . . . Total Part Build Rating . | . . . . . Parts Repaired . | . . . . . Time . | . . . . . Parts Recycled . | . . . . . Recycled Matter . | . . . . . Retrieved Matter . | . . . . . Retrieved Components . | . . . . . Parts Scanalyzed . | . . . . . Part Schematics Acquired . | . . . . . Parts Damaged . | . . . . . Bothacking | -11 -10 -10 -10 -9 ------------ Run | Yrd Mat Min Exi Min Used RIF Installer . | . . . . . Robots Hacked . | . . . . . Non-combat . | . . . . . Combat . | . . . . . Robot Hacks Applied . | . . . . . Relay Couplers Released . | . . . . . Fabnet Peak Effective % . | . . . . . Robots Rewired . | . . . . . Allies Hacked . | . . . . . Hacks Repelled . | . . . . . Allies | -11 -10 -10 -10 -9 -------- Run | Yrd Mat Min Exi Min Total Allies 1 | . . 1 . . Largest Group 1 | . . 1 . . Highest-Rated Group 31 | . . 31 . . Highest-Rated Ally 31 | . . 31 . . Total Orders . | . . . . . Ally Attacks . | . . . . . Total Damage . | . . . . . Kills . | . . . . . Allies Corrupted . | . . . . . Allies Melted . | . . . . . Intel | -11 -10 -10 -10 -9 ------- Run | Yrd Mat Min Exi Min Robot Analysis Total . | . . . . . Derelict Logs Recovered 1 | . . 1 . . Drone Launches . | . . . . . Drone Recoveries . | . . . . . Exploration | -11 -10 -10 -10 -9 ------------- Run | Yrd Mat Min Exi Min Turns Passed 1390 | 44 332 635 345 34 Spaces Moved 1043 | 29 233 500 275 6 Core 11 | 11 . . . . Treads . | . . . . . Legs 1032 | 18 233 500 275 6 Wheels . | . . . . . Hover . | . . . . . Flight . | . . . . . Fastest Speed 50 | 50 120 120 120 120 Average Speed 119 | 114 120 120 120 120 Slowest Speed 200 | 200 120 120 120 120 Overloaded Moves . | . . . . . Propulsion Burnouts . | . . . . . Robots Hopped . | . . . . . Cave-ins Triggered . | . . . . . Exploration Rate (%) 42 | 3 50 94 62 2 Regions Visited 4 Branch Regions 3 Pre-discovered Areas 1 | . . 1 . . Known Exits Taken 3 | . 1 1 1 . Unknown Exits Taken 1 | 1 . . . . Scrap Searched 1 | . . 1 . . Spaces Dug 25 | . . . . 25 Terrain Destroyed 35 | . . . . 35 Melee . | . . . . . Projectile . | . . . . . AOE 35 | . . . . 35 Terrain Rammed . | . . . . . Walls Destroyed . | . . . . . Machines Disabled . | . . . . . Actions | -11 -10 -10 -10 -9 --------- Run | Yrd Mat Min Exi Min Total 1144 | 39 262 527 294 22 Wait 21 | . 3 14 1 3 Move 1039 | 28 232 499 274 6 Hop . | . . . . . Pick Up 25 | 5 7 3 10 . Fast Attach 3 | 2 1 . . . Attach 5 | 4 . . . 1 Detach . | . . . . . Swap 7 | . 5 1 . 1 Drop 17 | . 3 5 9 . Fire 19 | . 11 5 . 3 Melee 8 | . . . . 8 Ram . | . . . . . Kick . | . . . . . Crush . | . . . . . Escape Stasis . | . . . . . Rewire . | . . . . . Trap . | . . . . . Miscellaneous . | . . . . . Route ------- -11/Scrapyard -10/Materials (discovered 2 exits: *Mat / *Min) -10/Mines (discovered 3 exits: *Mat x2 / *Exi) -10/Exiles (discovered 2 exits: *Min x2) -9/Mines History --------- Turn | Location | Event 18 | -11/Scrapyard | Discovered new exit (range 15) 45 | -11/Scrapyard | Entered Materials 207 | -10/Materials | Discovered new exit (range 4) 229 | -10/Materials | Identified exit to Materials 303 | -10/Materials | Build established: Mutant 365 | -10/Materials | Discovered new exit (range 12) 376 | -10/Materials | Identified exit to Mines 377 | -10/Materials | Entered Mines 483 | -10/Mines | Learned location of Storage (-7) 491 | -10/Mines | Discovered exit to Materials (range 4) 608 | -10/Mines | Discovered exit to Materials (range 8) 634 | -10/Mines | Received a Mining Laser from a helpful Derelict 772 | -10/Mines | Received a Rocket Launcher from a helpful Derelict 841 | -10/Mines | Found a hidden stash of uninstalled traps 1006 | -10/Mines | Deemed a non-threat by the Exiles lab entrance 1007 | -10/Mines | Discovered new exit (range 5) 1011 | -10/Mines | Identified exit to Exiles 1012 | -10/Mines | Entered Exiles 1036 | -10/Exiles | Discovered new exit (range 14) 1051 | -10/Exiles | Identified exit to Mines 1074 | -10/Exiles | Met 8R-AWN 1095 | -10/Exiles | Met EX-HEX 1128 | -10/Exiles | Met EX-BIN 1144 | -10/Exiles | Aligned with FarCom system 1146 | -10/Exiles | Given EX-Vault access code 1178 | -10/Exiles | Opened EX-Vault 1197 | -10/Exiles | Found Prototype Device 1202 | -10/Exiles | Found Prototype Slashing Weapon 1241 | -10/Exiles | Warned to stay clear of 0b10 Research branches 1279 | -10/Exiles | Met EX-DEC 1347 | -10/Exiles | Discovered exit to Mines (range 10) 1357 | -10/Exiles | Left Exiles lab with Longsword +1 1357 | -10/Exiles | Entered Mines 1358 | -9/Mines | Assembled infested the area 1363 | -9/Mines | Assisted by a Guerilla fighting off Assembled 1373 | -9/Mines | Identified Longsword +1 1379 | -9/Mines | Core integrity fell below 50% 1390 | -9/Mines | Core integrity fell below 20% 1391 | -9/Mines | Destroyed by as-96615 with Assembled Blade Last Messages --------------- 01370_ The unstable cave ceiling collapses. 01371_ as-45907 destroyed. 01372_ The unstable cave ceiling collapses. 01373_ Rocket Launcher destroyed. 01373_ System corrupted by crushing effect (+2). 01373_ Identified Longsword +1. 01373_ Critical hit (Burn: +80). 01374_ Destroyed Asb. Blade. 01376_ as-42143 destroyed. 01376_ as-16928 destroyed. 01378_ as-12407 destroyed. 01379_ Knocked back. 01381_ as-77051 destroyed. 01381_ Assault Rifle destroyed. 01383_ Acquired 9 matter. 01385_ System corrupted: Longsword +1 fused. 01386_ Destroyed Asb. F-torch. 01386_ as-43011 destroyed. 01387_ Lgt. Ion Engine destroyed. 01391_ Aluminum Leg destroyed. Map ----- +----------------------------------------------------+ | ????????????????????????????????? | | ????????????????????????????????? | | ????????????????????????????????? | | ????????????????????????????????? | | ????????????????????????????????? | | ????????????????????????????????? | | ????????????????????????????????? | | ????????????????????????????????? | | ????????????????????????????????? | | ????????????????????????????????? | | ????????????????????????????????? | | ????????????????????????????????? | | ????????????????????????????????? | | ????????????????????????????????? | | ????????????????????????????????? | | ????????????????????????????????? | | ????????????????????????????????? | | ????????????????????????####????? | | ??????????????????????### ##???? | | ?????????????????????## ##??? | | ?????????????????????# # #??? | | ?????????????????????## = #??? | | ????????????????????## a #??? | | ?????????????#< ##### %!a #??? | | ?????????????? %a*a=a% #??? | | ?????????????????????# a@ #??? | | ?????????????????????## a% ##??? | | ??????????????????????# #???? | | ??????????????????????### ###???? | | ????????????????????????###?????? | | ????????????????????????????????? | | ????????????????????????????????? | | ????????????????????????????????? | | ????????????????????????????????? | | ????????????????????????????????? | | ????????????????????????????????? | | ????????????????????????????????? | | ????????????????????????????????? | | ????????????????????????????????? | | ????????????????????????????????? | | ????????????????????????????????? | | ????????????????????????????????? | | ????????????????????????????????? | | ????????????????????????????????? | | ????????????????????????????????? | | ????????????????????????????????? | | ????????????????????????????????? | | ????????????????????????????????? | | ????????????????????????????????? | | ????????????????????????????????? | +----------------------------------------------------+ Best States ------------- Heat Dissipation 35 Energy Generation 10 Energy Capacity 250 Matter Stores 300 Matter Capacity 300 Sight Range 16 Terrain Scan Density 10 Evasion (%) 55 Item Schematics ----------------- None Robot Schematics ------------------ None Fabricated ------------ Nothing Alien Tech Used ----------------- None Achievements -------------- None Challenges ------------ None Game ------ Seed TransmissionUltimateLog Manual? 0 Play Time 00:12:57 Cumulative 9.6 hours Start 2024.04.04 @ 14:27:32 End 2024.04.04 @ 14:39:17 Sessions 1 Manual Loads 0 Difficulty Rogue Special Mode None Game No. 20 Rogue 20 Adventurer 0 Explorer 0 Win Type - Total 0 Types 0/0/0/0/0/0/0/0/0 Lore% 15 Gallery% 18 Achievement% 16 Wizard Run 0 Options --------- Layout 1 ASCII 0 Keyboard 0 Movement Numpad Keybinds 0 Fullscreen 1 Font 24/Terminus Map View 50x35 Zoom Use 0% Tactical HUD 1 Map Filters NONE Filters NONE Steam 1 RUN: fad87f24-f24a-4ebd-b5e6-49a1ff2b8801